bitfinex-derivatives/quotes_BTCF0:USTF0_20260131
["timestamp","ask_amount","ask_price","bid_price","bid_amount"]
[1769882324635,0.29455694,78903.0,78883.0,0.09091686]
[1769882325038,0.12675074,78902.0,78883.0,0.09091686]
[1769882325341,0.42130768,78902.0,78883.0,0.09091686]
[1769882325538,0.42130768,78902.0,78883.0,0.09081686]
[1769882325840,0.29455694,78902.0,78883.0,0.09081686]
[1769882326040,0.12675395,78901.0,78883.0,0.09081686]
[1769882326336,0.12675395,78901.0,78883.0,0.09071686]
[1769882326739,0.12675395,78901.0,78883.0,0.09061686]
[1769882326938,0.12675395,78901.0,78883.0,0.09051686]
[1769882327542,0.29455694,78900.0,78883.0,0.09051686]
[1769882328045,0.29455694,78900.0,78872.0,0.00016166]
[1769882328245,0.12675556,78899.0,78872.0,0.00016166]
[1769882328446,0.12675556,78899.0,78872.0,0.29130722]
[1769882329247,0.09136,78904.0,78875.0,0.012697]
[1769882329455,0.09136,78904.0,78876.0,0.29114556]
[1769882329647,0.126766,78903.0,78876.0,0.29114556]
[1769882330043,0.126766,78903.0,78872.0,0.00016166]
[1769882330044,0.29455694,78902.0,78872.0,0.00016166]
[1769882330650,0.29455694,78900.0,78872.0,0.00016166]
[1769882331354,0.29455694,78898.0,78872.0,0.00016166]
[1769882331651,0.33428,78897.0,78872.0,0.00016166]
[1769882331952,0.4610452,78897.0,78872.0,0.00016166]
[1769882332350,0.75560214,78897.0,78872.0,0.00016166]
[1769882332551,0.29455694,78896.0,78872.0,0.00016166]
[1769882333150,0.12676761,78895.0,78872.0,0.00016166]
[1769882333356,0.29455694,78894.0,78872.0,0.00016166]
[1769882334055,0.29455694,78892.0,78853.0,0.0914]
[1769882334253,0.30725194,78892.0,78853.0,0.0914]
[1769882334556,0.012695,78888.0,78853.0,0.0914]
[1769882334759,0.012695,78888.0,78832.0,0.91364]
[1769882334760,0.29455694,78883.0,78839.0,0.29114556]
[1769882334959,0.29455694,78879.0,78831.0,0.012705]
[1769882335257,0.30725394,78877.0,78831.0,0.29114556]
[1769882335461,0.29455694,78875.0,78831.0,0.29114556]
[1769882335848,0.29455694,78873.0,78831.0,0.29114556]
[1769882336050,0.29455694,78871.0,78831.0,0.29114556]
[1769882336850,0.29455694,78869.0,78831.0,0.29114556]
[1769882337052,0.29455694,78867.0,78831.0,0.29114556]
[1769882337360,0.29470586,78866.0,78831.0,0.29114556]
[1769882337552,0.42152894,78866.0,78831.0,0.29114556]
[1769882337753,0.42152894,78866.0,78834.0,0.012704]
[1769882337754,0.00014892,78866.0,78834.0,0.012704]
[1769882337963,0.00014892,78866.0,78835.0,0.29114556]
[1769882338656,0.00014892,78866.0,78838.0,0.012703]
[1769882338857,0.00014892,78866.0,78839.0,0.29114556]
[1769882339360,0.00014892,78866.0,78840.0,0.012703]
[1769882339557,0.00014892,78866.0,78843.0,0.29114556]
[1769882339756,0.00014892,78866.0,78845.0,0.29114556]
[1769882340061,0.00014892,78866.0,78844.0,0.104102]
[1769882340062,0.0914,78881.0,78852.0,0.29114556]
[1769882340254,0.0914,78881.0,78844.0,0.0914]
[1769882340255,0.0824,78881.0,78856.0,0.29114556]
[1769882340457,0.0824,78881.0,78844.0,0.0914]
[1769882340458,0.0824,78881.0,78860.0,0.29114556]
[1769882340661,0.33436,78894.0,78864.0,0.29114556]
[1769882340955,0.0914,78896.0,78866.0,0.29114556]
[1769882341157,0.0914,78896.0,78865.0,0.012699]
[1769882341158,0.29455694,78903.0,78868.0,0.29114556]
[1769882341362,0.29455694,78911.0,78870.0,0.29114556]
[1769882341556,0.12677324,78901.0,78873.0,0.29114556]
[1769882341751,0.29455694,78911.0,78873.0,0.29114556]
[1769882342160,0.12677324,78910.0,78875.0,0.29114556]
[1769882342455,0.12677324,78910.0,78874.0,0.3344]
[1769882342456,0.0914,78912.0,78879.0,0.29114556]
[1769882342655,0.0914,78912.0,78876.0,0.0914]
[1769882342656,0.29455694,78928.0,78883.0,0.29114556]
[1769882342858,0.01268632,78935.0,78887.0,0.29114556]
[1769882343059,0.12675556,78923.0,78887.0,0.29114556]
[1769882343359,0.0914,78935.0,78896.0,0.29114556]
[1769882343564,0.0914,78935.0,78898.0,0.29114556]
[1769882343756,0.29455694,78926.0,78877.0,0.12672504]
[1769882344056,0.29455694,78922.0,78879.0,0.29114556]
[1769882344261,0.29455694,78922.0,78880.0,0.29114556]
[1769882344763,0.1267403,78921.0,78880.0,0.29114556]
[1769882344957,0.2181403,78921.0,78880.0,0.29114556]
[1769882345755,0.29455694,78920.0,78880.0,0.29114556]
[1769882346063,0.29455694,78920.0,78878.0,0.0914]
[1769882346461,0.29455694,78918.0,78878.0,0.0914]
[1769882346958,0.29455694,78918.0,78879.0,0.29114556]
[1769882347167,0.28289765,78916.0,78881.0,0.29997289]
[1769882347366,0.26089765,78916.0,78883.0,0.29997289]
[1769882347664,0.0914,78921.0,78890.0,0.29997289]
[1769882347966,0.28289765,78945.0,78894.0,0.29987289]
[1769882348161,0.28289765,78941.0,78895.0,0.0914]
[1769882348360,0.28289765,78939.0,78895.0,0.0914]
[1769882348661,0.28289765,78939.0,78898.0,0.012694]
[1769882348860,0.28289765,78939.0,78896.0,0.1267146]
[1769882348861,0.28289765,78939.0,78899.0,0.33436]
[1769882349067,0.28289765,78937.0,78895.0,0.0914]
[1769882349364,0.28289765,78935.0,78895.0,0.0914]
[1769882349662,0.28289765,78933.0,78895.0,0.0914]
[1769882349965,0.0914,78934.0,78895.0,0.0914]
[1769882350169,0.0914,78934.0,78896.0,0.29987289]
[1769882350364,0.12671219,78932.0,78897.0,0.012694]
[1769882350557,0.0914,78934.0,78902.0,0.012693]
[1769882351271,0.0914,78934.0,78902.0,0.012593]
[1769882352270,0.0914,78934.0,78903.0,0.29997289]
[1769882352470,0.28289765,78948.0,78903.0,0.29997289]
[1769882352670,0.28289765,78948.0,78905.0,0.29997289]
[1769882352871,0.28289765,78947.0,78905.0,0.29997289]
[1769882353469,0.28289765,78945.0,78909.0,0.012692]
[1769882353773,0.28289765,78943.0,78910.0,0.09136]
[1769882354272,0.28289765,78943.0,78910.0,0.39133289]
[1769882354469,0.28289765,78943.0,78911.0,0.29997289]
[1769882354671,0.09136,78944.0,78916.0,0.29997289]
[1769882354672,0.12670015,78942.0,78916.0,0.29997289]
[1769882354871,0.09136,78958.0,78916.0,0.29997289]
[1769882355069,0.09136,78958.0,78921.0,0.29997289]
[1769882355374,0.12670015,78957.0,78927.0,0.012689]
[1769882355567,0.09136,78958.0,78929.0,0.29997289]
[1769882355763,0.09136,78958.0,78931.0,0.29997289]
[1769882355962,0.09136,78958.0,78931.0,0.31266089]
[1769882356163,0.28289765,78964.0,78931.0,0.31266089]
[1769882356571,0.12667126,78963.0,78931.0,0.31266089]
[1769882356765,0.09136,78968.0,78931.0,0.31266089]
[1769882356970,0.09136,78968.0,78936.0,0.012688]
[1769882357166,0.12667126,78967.0,78936.0,0.31266089]
[1769882357362,0.09136,78968.0,78936.0,0.31266089]
[1769882358263,0.09136,78968.0,78930.0,0.33428]
[1769882358264,0.09136,78968.0,78941.0,0.29997289]
[1769882358568,0.28289765,78967.0,78942.0,0.09136]
[1769882358773,0.28289765,78966.0,78942.0,0.09136]
[1769882359168,0.28289765,78964.0,78930.0,0.33428]
[1769882359974,0.28289765,78962.0,78927.0,0.09136]
[1769882360576,0.12667126,78961.0,78928.0,0.29997289]
[1769882361672,0.12667126,78961.0,78927.0,0.09136]
[1769882361673,0.28289765,78960.0,78927.0,0.09136]
[1769882362268,0.12667126,78959.0,78927.0,0.09136]
[1769882362474,0.12667126,78959.0,78928.0,0.29997289]
[1769882362677,0.28289765,78958.0,78928.0,0.29997289]
[1769882362974,0.28289765,78958.0,78927.0,0.09136]
[1769882363375,0.28289765,78956.0,78927.0,0.09136]
[1769882363778,0.28289765,78949.0,78913.0,0.09136]
[1769882364075,0.28289765,78947.0,78913.0,0.09136]
[1769882364466,0.09136,78948.0,78913.0,0.09136]
[1769882364467,0.26089765,78945.0,78913.0,0.09136]
[1769882364667,0.12669293,78946.0,78914.0,0.29997289]
[1769882364884,0.09136,78948.0,78914.0,0.29997289]
[1769882365176,0.12669293,78947.0,78914.0,0.29997289]
[1769882365378,0.09136,78948.0,78914.0,0.29997289]
[1769882365576,0.12669293,78947.0,78914.0,0.29997289]
[1769882365882,0.12669293,78947.0,78913.0,0.09136]
[1769882366577,0.28289765,78946.0,78913.0,0.09136]
[1769882366779,0.28289765,78944.0,78905.0,0.29997289]
[1769882366977,0.28289765,78944.0,78906.0,0.39133289]
[1769882367178,0.28289765,78942.0,78906.0,0.39133289]
[1769882367475,0.09136,78948.0,78900.0,0.33416]
[1769882367476,0.28289765,78940.0,78900.0,0.33416]
[1769882367676,0.28289765,78940.0,78880.0,0.51683771]
[1769882367677,0.28289765,78924.0,78882.0,0.29997289]
[1769882367874,0.28289765,78922.0,78882.0,0.29997289]
[1769882368178,0.28289765,78922.0,78871.0,0.42552]
[1769882368179,0.28289765,78914.0,78871.0,0.42552]
[1769882368375,0.28289765,78911.0,78871.0,0.42552]
[1769882368778,0.28289765,78909.0,78871.0,0.42552]
[1769882369472,0.28289765,78907.0,78871.0,0.42552]
[1769882369669,0.28289765,78905.0,78871.0,0.42552]
[1769882369875,0.28289765,78904.0,78871.0,0.42552]
[1769882370177,0.12675877,78904.0,78874.0,0.29997289]
[1769882370480,0.28289765,78903.0,78874.0,0.29997289]
[1769882371579,0.12676118,78902.0,78874.0,0.29997289]
[1769882372283,0.12676118,78902.0,78874.0,0.29987289]
[1769882372975,0.09136,78906.0,78874.0,0.29987289]
[1769882373176,0.09136,78920.0,78890.0,0.2090933]
[1769882373374,0.09136,78930.0,78891.0,0.42556]
[1769882373579,0.09136,78930.0,78891.0,0.09136]
[1769882373580,0.12675877,78923.0,78891.0,0.09136]
[1769882373780,0.28289765,78929.0,78891.0,0.09136]
[1769882374080,0.12675877,78929.0,78892.0,0.012695]
[1769882374279,0.12675877,78929.0,78893.0,0.29997289]
[1769882374476,0.12675877,78929.0,78896.0,0.29997289]
[1769882374878,0.12675877,78929.0,78895.0,0.012694]
[1769882374879,0.12675877,78929.0,78898.0,0.29997289]
[1769882375073,0.09136,78930.0,78900.0,0.29997289]
[1769882375269,0.01308908,78945.0,78901.0,0.29997289]
[1769882375473,0.012686,78947.0,78901.0,0.29997289]
[1769882375474,0.28289765,78943.0,78901.0,0.29997289]
[1769882375672,0.28289765,78943.0,78901.0,0.31266589]
[1769882376277,0.28289765,78941.0,78903.0,0.29997289]
[1769882376671,0.28289765,78939.0,78903.0,0.29997289]
[1769882377381,0.12670738,78938.0,78903.0,0.29997289]
[1769882377979,0.4256,78944.0,78905.0,0.29928343]
[1769882378179,0.4256,78944.0,78907.0,0.29928343]
[1769882378380,0.2925549,78942.0,78907.0,0.29928343]
[1769882379080,0.2925549,78939.0,78907.0,0.29928343]
[1769882379381,0.2925549,78939.0,78906.0,0.09136]
[1769882379779,0.2925549,78939.0,78899.0,0.29928343]
[1769882379780,0.2925549,78937.0,78899.0,0.29928343]
[1769882380182,0.2090933,78920.0,78899.0,0.29928343]
[1769882380384,0.2090933,78920.0,78890.0,0.29928343]
[1769882380975,0.1267138,78919.0,78890.0,0.29928343]
[1769882381571,0.1047138,78919.0,78890.0,0.29928343]
[1769882382175,0.33424,78927.0,78890.0,0.31197843]
[1769882382579,0.12673548,78926.0,78890.0,0.31197843]
[1769882382779,0.09136,78928.0,78890.0,0.29928343]
[1769882383182,0.12673548,78927.0,78890.0,0.29928343]
[1769882383981,0.12673548,78927.0,78890.0,0.30028343]
[1769882384386,0.12673548,78927.0,78892.0,0.29343583]
[1769882384676,0.12673548,78927.0,78894.0,0.29343583]
[1769882388888,0.10473548,78927.0,78894.0,0.29343583]
[1769882389788,0.10473548,78927.0,78889.0,0.09136]
[1769882389789,0.09136,78928.0,78899.0,0.29343583]
[1769882390092,0.27778563,78938.0,78901.0,0.29343583]
[1769882390288,0.36914563,78938.0,78903.0,0.29343583]
[1769882390587,0.12672584,78937.0,78905.0,0.29343583]
[1769882390788,0.52827275,78946.0,78909.0,0.29343583]
[1769882390992,0.27778563,78944.0,78909.0,0.29343583]
[1769882391194,0.12671139,78942.0,78909.0,0.29343583]
[1769882391585,0.27778563,78944.0,78909.0,0.29343583]
[1769882391785,0.27778563,78942.0,78909.0,0.29343583]
[1769882392185,0.27778563,78942.0,78904.0,0.4256]
[1769882392186,0.09136,78945.0,78911.0,0.29343583]
[1769882392387,0.12670015,78941.0,78911.0,0.29343583]
[1769882392588,0.09136,78945.0,78904.0,0.4256]
[1769882392589,0.09136,78945.0,78915.0,0.29343583]
[1769882396595,0.27778563,78950.0,78915.0,0.29343583]
[1769882399091,0.27778563,78957.0,78917.0,0.29343583]
[1769882399395,0.27778563,78957.0,78916.0,0.012691]
[1769882399396,0.40447615,78956.0,78919.0,0.29343583]
[1769882399596,0.27778563,78955.0,78919.0,0.29343583]
[1769882399798,0.27778563,78954.0,78919.0,0.29343583]
[1769882400094,0.27778563,78954.0,78920.0,0.29343583]
[1769882400292,0.27778563,78952.0,78920.0,0.29343583]
[1769882400495,0.27778563,78952.0,78919.0,0.3342]
[1769882400888,0.1266833,78951.0,78927.0,0.29343583]
[1769882401087,0.27778563,78966.0,78927.0,0.29343583]
[1769882401495,0.27778563,78965.0,78927.0,0.29343583]
[1769882401696,0.359011,78981.0,78927.0,0.29343583]
[1769882401697,0.52827275,78975.0,78936.0,0.29343583]
[1769882401888,0.25048712,78981.0,78938.0,0.30612283]
[1769882402393,0.27778563,78974.0,78940.0,0.29343583]
[1769882402891,0.52827275,78972.0,78937.0,0.42556]
[1769882403090,0.27778563,78966.0,78922.0,0.09136]
[1769882403292,0.27778563,78961.0,78922.0,0.09136]
[1769882403486,0.27778563,78958.0,78923.0,0.29343583]
[1769882403686,0.09136,78960.0,78925.0,0.29343583]
[1769882403898,0.27778563,78959.0,78925.0,0.29343583]
[1769882404389,0.27778563,78957.0,78922.0,0.09136]
[1769882404594,0.27778563,78957.0,78914.0,0.15139771]
[1769882404595,0.27778563,78952.0,78908.0,0.29343583]
[1769882404789,0.27778563,78948.0,78908.0,0.29343583]
[1769882404992,0.27778563,78947.0,78908.0,0.29343583]
[1769882405192,0.27778563,78944.0,78909.0,0.33416]
[1769882405392,0.27778563,78942.0,78909.0,0.33416]
[1769882405588,0.27778563,78942.0,78910.0,0.29343583]
[1769882405795,0.25048712,78945.0,78910.0,0.30612783]
[1769882406002,0.27778563,78945.0,78913.0,0.29343583]
[1769882406295,0.37718567,78945.0,78913.0,0.29343583]
[1769882406493,0.359011,78959.0,78927.0,0.29343583]
[1769882406694,0.25048712,78963.0,78928.0,0.42548]
[1769882406894,0.25048712,78965.0,78928.0,0.42548]
[1769882407094,0.25048712,78965.0,78930.0,0.012689]
[1769882407397,0.25048712,78966.0,78930.0,0.012689]
[1769882407597,0.25048712,78969.0,78930.0,0.012689]
[1769882407793,0.53724004,78969.0,78930.0,0.012689]
[1769882407999,0.53724004,78968.0,78928.0,0.42491651]
[1769882408199,0.25048712,78967.0,78934.0,0.012688]
[1769882408398,0.09132,78972.0,78939.0,0.012687]
[1769882408399,0.12666645,78971.0,78939.0,0.012687]
[1769882408593,0.09132,78972.0,78942.0,0.2824381]
[1769882408790,0.09132,78972.0,78944.0,0.2824381]
[1769882409501,0.09132,78972.0,78944.0,0.2823381]
[1769882409998,0.25048712,78980.0,78945.0,0.012686]
[1769882410202,0.25048712,78981.0,78945.0,0.012586]
[1769882410398,0.12664961,78984.0,78945.0,0.012586]
[1769882410601,0.28675292,78983.0,78945.0,0.012586]
[1769882410802,0.28675292,78983.0,78943.0,0.09132]
[1769882410803,0.12664239,78985.0,78943.0,0.09132]
[1769882411003,0.12664239,78985.0,78972.0,0.012682]
[1769882411202,0.09132,79006.0,78977.0,0.012681]
[1769882411395,0.25048712,79017.0,78984.0,0.2824381]
[1769882411599,0.39772785,79021.0,78986.0,0.2823381]
[1769882411600,0.09132,79021.0,78986.0,0.2823381]
[1769882411799,0.37710385,79025.0,78986.0,0.2823381]
[1769882412097,0.25048712,79029.0,78985.0,0.33412]
[1769882412309,0.12661673,79024.0,78985.0,0.33412]
[1769882412503,0.28675292,79023.0,78986.0,0.012579]
[1769882412901,0.12657106,79029.0,78996.0,0.012678]
[1769882413098,0.06932,79037.0,79002.0,0.012577]
[1769882413302,0.06932,79037.0,78997.0,0.09132]
[1769882413303,0.06932,79037.0,79003.0,0.33408]
[1769882413604,0.34180712,79059.0,79022.0,0.2951121]
[1769882413905,0.34180712,79059.0,79023.0,0.09132]
[1769882413906,0.28675292,79058.0,79023.0,0.09132]
[1769882414107,0.12655104,79049.0,79019.0,0.2951121]
[1769882414306,0.28675292,79058.0,79019.0,0.2951121]
[1769882414602,0.12652782,79057.0,79024.0,0.012673]
[1769882414797,0.28675292,79056.0,79024.0,0.012673]
[1769882414999,0.28675292,79056.0,79018.0,0.09132]
[1769882415504,0.28675292,79054.0,79019.0,0.012674]
[1769882415698,0.12652782,79055.0,79025.0,0.2824381]
[1769882415904,0.09132,79059.0,79031.0,0.012672]
[1769882416206,0.09132,79059.0,79032.0,0.09128]
[1769882416396,0.09132,79059.0,79032.0,0.3737181]
[1769882416604,0.28675292,79077.0,79039.0,0.2951091]
[1769882416803,0.62075292,79076.0,79045.0,0.01267]
[1769882417013,0.28675292,79076.0,79045.0,0.01267]
[1769882417203,0.29949699,79076.0,79045.0,0.01267]
[1769882417399,0.28675292,79074.0,79039.0,0.2824381]
[1769882417706,0.28675292,79074.0,79040.0,0.012671]
[1769882418103,0.28675292,79072.0,79040.0,0.012671]
[1769882418705,0.12649261,79071.0,79040.0,0.012671]
[1769882418902,0.41324553,79071.0,79040.0,0.012671]
[1769882419210,0.28675292,79070.0,79039.0,0.2824381]
[1769882419412,0.28675292,79070.0,79032.0,0.09128]
[1769882419706,0.33392,79071.0,79045.0,0.2824381]
[1769882419908,0.28675292,79070.0,79033.0,0.012672]
[1769882420097,0.33392,79071.0,79033.0,0.012672]
[1769882420098,0.28675292,79068.0,79033.0,0.012672]
[1769882420297,0.28675292,79068.0,79032.0,0.09128]
[1769882420298,0.28675292,79061.0,79032.0,0.09128]
[1769882420499,0.33392,79071.0,79032.0,0.09128]
[1769882420500,0.28675292,79059.0,79032.0,0.09128]
[1769882420703,0.09128,79060.0,79011.0,0.2824381]
[1769882420704,0.28675292,79057.0,79011.0,0.2824381]
[1769882420905,0.28675292,79054.0,79011.0,0.2824381]
[1769882421101,0.28675292,79052.0,79008.0,0.33388]
[1769882421307,0.28675292,79050.0,79008.0,0.33388]
[1769882421612,0.012669,79051.0,79008.0,0.33388]
[1769882421613,0.28675292,79045.0,79008.0,0.33388]
[1769882421908,0.09124,79044.0,79009.0,0.2824381]
[1769882422105,0.28675292,79058.0,79027.0,0.012673]
[1769882422300,0.28675292,79054.0,79020.0,0.012674]
[1769882422501,0.28675292,79054.0,79022.0,0.2824381]
[1769882422811,0.28675292,79054.0,79022.0,0.2951121]
[1769882423108,0.28675292,79063.0,79031.0,0.012672]
[1769882423300,0.28675292,79063.0,79010.0,0.2090933]
[1769882423301,0.28675292,79063.0,79035.0,0.012672]
[1769882423705,0.28675292,79072.0,79040.0,0.012671]
[1769882423908,0.28675292,79072.0,79040.0,0.3863491]
[1769882424108,0.28675292,79072.0,79047.0,0.01267]
[1769882424301,0.28675292,79072.0,79041.0,0.2951091]
[1769882424501,0.001,79063.0,79041.0,0.2824381]
[1769882424716,0.001,79063.0,79042.0,0.2951081]
[1769882424916,0.001,79063.0,79042.0,0.2824381]
[1769882425108,0.103904,79081.0,79042.0,0.2824381]
[1769882425304,0.103904,79081.0,79040.0,0.09124]
[1769882425305,0.28675292,79076.0,79040.0,0.09124]
[1769882425504,0.28675292,79064.0,79040.0,0.09124]
[1769882425703,0.09124,79081.0,79041.0,0.2824381]
[1769882425704,0.28675292,79074.0,79041.0,0.2824381]
[1769882426103,0.28675292,79074.0,79040.0,0.09124]
[1769882426104,0.28675292,79073.0,79040.0,0.09124]
[1769882426714,0.12649181,79072.0,79040.0,0.09124]
[1769882427112,0.12649181,79072.0,79040.0,0.3736781]
[1769882427312,0.28675292,79071.0,79040.0,0.3735781]
[1769882427511,0.28675292,79071.0,79040.0,0.09114]
[1769882427712,0.29941892,79071.0,79040.0,0.09114]
[1769882427908,0.28675292,79062.0,79040.0,0.09114]
[1769882428111,0.12649261,79070.0,79021.0,0.09114]
[1769882428112,0.28675292,79043.0,79021.0,0.09114]
[1769882428319,0.28675292,79042.0,79017.0,0.09124]
[1769882428513,0.28675292,79056.0,79020.0,0.2824381]
[1769882428707,0.12653102,79060.0,79031.0,0.012672]
[1769882428907,0.09124,79061.0,79032.0,0.09124]
[1769882429114,0.09124,79061.0,79034.0,0.012572]
[1769882429310,0.33376,79072.0,79039.0,0.012671]
[1769882429517,0.09124,79076.0,79049.0,0.012669]
[1769882429718,0.09124,79076.0,79031.0,0.33376]
[1769882429719,0.28675292,79072.0,79036.0,0.012672]
[1769882430112,0.29941892,79068.0,79033.0,0.21774621]
[1769882430316,0.28675292,79068.0,79034.0,0.012672]
[1769882430516,0.29941992,79068.0,79034.0,0.012672]
[1769882430715,0.012666,79074.0,79037.0,0.2951091]
[1769882431117,0.27741892,79074.0,79037.0,0.2951091]
[1769882431615,0.12650141,79073.0,79037.0,0.2951091]
[1769882431819,0.12650141,79073.0,79034.0,0.001]
[1769882432017,0.012666,79069.0,79034.0,0.001]
[1769882432316,0.012666,79070.0,79034.0,0.001]
[1769882432620,0.012668,79061.0,79034.0,0.001]
[1769882432817,0.012668,79056.0,79033.0,0.09124]
[1769882433223,0.09124,79062.0,79016.0,0.2824381]
[1769882433224,0.28675292,79052.0,79019.0,0.0912]
[1769882433522,0.29942092,79059.0,79020.0,0.2824381]
[1769882433722,0.28675292,79059.0,79024.0,0.2824381]
[1769882434112,0.012668,79058.0,79024.0,0.2824381]
[1769882434316,0.12652542,79058.0,79025.0,0.012673]
[1769882434512,0.12652542,79058.0,79026.0,0.2824381]
[1769882434710,0.09124,79062.0,79031.0,0.2824381]
[1769882434916,0.28675292,79069.0,79033.0,0.012672]
[1769882435118,0.28675292,79067.0,79034.0,0.0912]
[1769882435318,0.28675292,79060.0,79031.0,0.0912]
[1769882435725,0.28675292,79053.0,79031.0,0.0912]
[1769882435916,0.29942192,79052.0,79031.0,0.0912]
[1769882436112,0.28675292,79052.0,79031.0,0.0912]
[1769882436319,0.001,79059.0,79031.0,0.0912]
[1769882436526,0.001,79059.0,79033.0,0.012672]
[1769882436716,0.001,79059.0,79036.0,0.2824381]
[1769882436915,0.28675292,79073.0,79038.0,0.28045]
[1769882437322,0.12651581,79072.0,79038.0,0.28045]
[1769882438025,0.0912,79078.0,79042.0,0.28045]
[1769882438222,0.0912,79078.0,79056.0,0.28045]
[1769882438422,0.295619,79093.0,79058.0,0.28045]
[1769882438624,0.103862,79096.0,79058.0,0.28045]
[1769882438825,0.103862,79096.0,79069.0,0.28045]
[1769882438826,0.0912,79096.0,79069.0,0.28045]
[1769882439021,0.0912,79096.0,79071.0,0.28045]
[1769882439222,0.0912,79110.0,79073.0,0.293116]
[1769882439421,0.01266,79107.0,79073.0,0.28045]
[1769882439623,0.01266,79109.0,79073.0,0.28045]
[1769882439825,0.0912,79110.0,79074.0,0.293115]
[1769882440025,0.12643583,79108.0,79074.0,0.28045]
[1769882440525,0.12643583,79109.0,79074.0,0.28045]
[1769882440733,0.12643583,79109.0,79084.0,0.293114]
[1769882441024,0.0912,79110.0,79084.0,0.293114]
[1769882441226,0.295619,79124.0,79089.0,0.293113]
[1769882441432,0.308277,79124.0,79090.0,0.42484]
[1769882441624,0.12643663,79123.0,79090.0,0.71006555]
[1769882441824,0.0912,79127.0,79092.0,0.012663]
[1769882442028,0.27559356,79151.0,79091.0,0.10031771]
[1769882442224,0.27559356,79151.0,79108.0,0.01266]
[1769882442532,0.12641186,79153.0,79109.0,0.42484]
[1769882442833,0.012653,79155.0,79109.0,0.55115186]
[1769882443031,0.27559356,79150.0,79109.0,0.42474]
[1769882443424,0.27559356,79162.0,79111.0,0.01266]
[1769882443629,0.012652,79159.0,79111.0,0.01256]
[1769882443826,0.012652,79159.0,79116.0,0.28522555]
[1769882444022,0.27559356,79182.0,79126.0,0.28522555]
[1769882444222,0.012648,79182.0,79134.0,0.28522555]
[1769882444425,0.103847,79190.0,79137.0,0.28512555]
[1769882444930,0.27559356,79185.0,79132.0,0.012656]
[1769882445229,0.27559356,79185.0,79127.0,0.52511771]
[1769882445230,0.0912,79190.0,79140.0,0.012655]
[1769882445527,0.0912,79190.0,79138.0,0.12632961]
[1769882445528,0.012648,79184.0,79141.0,0.09116]
[1769882445729,0.012648,79184.0,79141.0,0.21748961]
[1769882445932,0.012651,79164.0,79141.0,0.09116]
[1769882446829,0.01265,79172.0,79141.0,0.09116]
[1769882447224,0.28824456,79164.0,79141.0,0.09116]
[1769882447423,0.27559356,79156.0,79111.0,0.28522555]
[1769882447623,0.063251,79173.0,79111.0,0.28522555]
[1769882447624,0.28824656,79154.0,79127.0,0.09116]
[1769882448126,0.09116,79159.0,79127.0,0.09116]
[1769882448329,0.27559356,79158.0,79127.0,0.09116]
[1769882448520,0.09116,79159.0,79127.0,0.09116]
[1769882448521,0.27559356,79156.0,79127.0,0.09116]
[1769882449031,0.27559356,79154.0,79127.0,0.09116]
[1769882449234,0.27559356,79154.0,79111.0,0.42464]
[1769882449530,0.27559356,79143.0,79111.0,0.42464]
[1769882449728,0.28824856,79141.0,79111.0,0.09116]
[1769882450227,0.12637032,79140.0,79111.0,0.09116]
[1769882450435,0.27559356,79139.0,79111.0,0.09116]
[1769882450632,0.27559356,79152.0,79111.0,0.09116]
[1769882450835,0.1263815,79143.0,79111.0,0.09116]
[1769882451131,0.27559356,79138.0,79111.0,0.09116]
[1769882451330,0.27559356,79136.0,79099.0,0.33344]
[1769882451829,0.1263831,79135.0,79099.0,0.33344]
[1769882452028,0.001,79141.0,79099.0,0.33344]
[1769882452029,0.001,79141.0,79103.0,0.28532786]
[1769882452534,0.09112,79145.0,79103.0,0.28532786]
[1769882452721,0.09112,79145.0,79111.0,0.001]
[1769882453128,0.09112,79145.0,79112.0,0.09112]
[1769882453426,0.12638709,79144.0,79112.0,0.09112]
[1769882453824,0.27559356,79158.0,79115.0,0.28522555]
[1769882454028,0.28824556,79157.0,79115.0,0.28522555]
[1769882454232,0.12637671,79151.0,79115.0,0.28522555]
[1769882454421,0.27559356,79157.0,79115.0,0.28522555]
[1769882454422,0.012653,79150.0,79115.0,0.28522555]
[1769882454824,0.12252826,79151.0,79117.0,0.28522555]
[1769882455029,0.012648,79185.0,79131.0,0.28522555]
[1769882455234,0.012648,79185.0,79134.0,0.28522555]
[1769882455235,0.28824156,79185.0,79134.0,0.28522555]
[1769882455431,0.12636952,79178.0,79137.0,0.28522555]
[1769882455630,0.28824156,79185.0,79139.0,0.28522555]
[1769882455835,0.12632722,79184.0,79139.0,0.28522555]
[1769882456333,0.27559356,79196.0,79153.0,0.28522555]
[1769882456524,0.09112,79195.0,79158.0,0.012652]
[1769882456728,0.12632722,79190.0,79158.0,0.012652]
[1769882457224,0.27559356,79189.0,79154.0,0.09112]
[1769882457424,0.27559356,79187.0,79154.0,0.09112]
[1769882457631,0.27559356,79187.0,79154.0,0.37634555]
[1769882457935,0.12630807,79186.0,79154.0,0.37634555]
[1769882458132,0.27559356,79187.0,79154.0,0.37634555]
[1769882458534,0.40190163,79186.0,79154.0,0.09112]
[1769882458732,0.27559356,79185.0,79154.0,0.09112]
[1769882459238,0.27559356,79181.0,79141.0,0.33336]
[1769882459431,0.27559356,79179.0,79141.0,0.33336]
[1769882459637,0.27559356,79177.0,79141.0,0.33336]
[1769882460240,0.27559356,79167.0,79139.0,0.09112]
[1769882460433,0.25359356,79167.0,79139.0,0.09112]
[1769882460630,0.09112,79178.0,79139.0,0.09112]
[1769882460830,0.09112,79178.0,79140.0,0.28522555]
[1769882461039,0.09112,79178.0,79139.0,0.09112]
[1769882461040,0.12633759,79175.0,79139.0,0.09112]
[1769882461331,0.09112,79178.0,79119.0,0.09112]
[1769882461332,0.012651,79163.0,79119.0,0.09112]
[1769882461533,0.09112,79178.0,79108.0,0.01266]
[1769882461534,0.012652,79157.0,79113.0,0.28522555]
[1769882461842,0.103772,79158.0,79112.0,0.09112]
[1769882462038,0.012653,79155.0,79112.0,0.09112]
[1769882462335,0.012651,79163.0,79113.0,0.28522555]
[1769882462543,0.12635675,79154.0,79128.0,0.28522555]
[1769882462836,0.27559356,79171.0,79129.0,0.37634555]
[1769882463032,0.09112,79173.0,79130.0,0.09112]
[1769882463033,0.27559356,79160.0,79130.0,0.09112]
[1769882463228,0.27559356,79153.0,79118.0,0.09112]
[1769882463439,0.27559356,79128.0,79088.0,0.09112]
[1769882463632,0.27559356,79128.0,79077.0,0.33328]
[1769882463633,0.27559356,79146.0,79097.0,0.012662]
[1769882463839,0.27559356,79146.0,79104.0,0.09112]